bitfinex/quotes_BTCUSD_20241110
["timestamp","ask_amount","ask_price","bid_price","bid_amount"]
[1731231321345,0.07511538,79352.0,79351.0,0.24894221]
[1731231323909,0.045,79358.0,79352.0,0.023]
[1731231324107,0.045,79358.0,79354.0,0.123]
[1731231324415,0.022,79358.0,79357.0,0.023]
[1731231324647,0.022,79358.0,79357.0,0.24894221]
[1731231326247,0.022,79358.0,79357.0,0.1]
[1731231326514,0.022,79358.0,79349.0,0.001678]
[1731231326718,0.022,79358.0,79350.0,0.12594221]
[1731231327095,1.5,79357.0,79351.0,0.1]
[1731231327295,1.5,79357.0,79351.0,0.22594221]
[1731231327820,0.022,79358.0,79351.0,0.22594221]
[1731231328077,0.01841642,79358.0,79351.0,0.22594221]
[1731231328257,0.01446381,79358.0,79353.0,0.1]
[1731231328581,0.00154641,79357.0,79355.0,0.1]
[1731231328787,0.00154641,79357.0,79356.0,0.12594221]
[1731231329154,0.00154641,79357.0,79356.0,0.22594221]
[1731231330763,0.00154641,79357.0,79353.0,0.001678]
[1731231330960,0.00154641,79357.0,79355.0,0.1]
[1731231331218,0.0481,79356.0,79355.0,0.1]
[1731231331620,0.0481,79356.0,79355.0,0.10399969]
[1731231334753,1.5481,79356.0,79355.0,0.10399969]
[1731231334960,1.5,79356.0,79355.0,0.10399969]
[1731231335162,1.5,79356.0,79355.0,0.1]
[1731231335949,1.48984156,79356.0,79355.0,0.1]
[1731231337234,0.00154641,79357.0,79355.0,0.1]
[1731231337586,0.00154641,79357.0,79356.0,0.00411008]
[1731231337985,0.00154641,79357.0,79355.0,0.1]
[1731231339178,1.47938541,79361.0,79355.0,0.1]
[1731231341721,1.47938541,79361.0,79355.0,0.10168]
[1731231341923,1.48022541,79361.0,79355.0,0.10168]
[1731231342361,0.0459,79360.0,79355.0,0.00168]
[1731231342561,0.0757,79356.0,79355.0,0.00168]
[1731231342971,1.5757,79356.0,79355.0,0.00168]
[1731231350451,1.6237,79356.0,79355.0,0.00168]
[1731231354252,1.6007,79356.0,79355.0,0.00168]
[1731231355597,1.6157,79356.0,79355.0,0.00168]
[1731231355981,1.76215051,79356.0,79355.0,0.00168]
[1731231356837,1.88809272,79356.0,79355.0,0.00168]
[1731231362521,1.76215051,79356.0,79355.0,0.00168]
[1731231364446,1.88809272,79356.0,79355.0,0.00168]
[1731231366694,0.015,79354.0,79353.0,0.001678]
[1731231366906,0.015,79354.0,79306.0,0.005]
[1731231366907,0.1434,79338.0,79313.0,0.0488]
[1731231367117,0.28985051,79338.0,79337.0,0.19505126]
[1731231367316,1.78985051,79338.0,79337.0,0.19505126]
[1731231367528,0.1284,79333.0,79310.0,0.0755]
[1731231367725,0.14645051,79329.0,79310.0,0.0755]
[1731231368143,0.005,79332.0,79327.0,0.1]
[1731231368345,0.005,79332.0,79316.0,0.1]
[1731231368546,1.5,79328.0,79324.0,0.1]
[1731231368765,1.5,79328.0,79316.0,0.1]
[1731231368974,0.14645051,79324.0,79316.0,0.1]
[1731231369176,0.12345051,79324.0,79316.0,0.1]
[1731231369659,1.5,79328.0,79310.0,0.0755]
[1731231369660,0.14645051,79318.0,79310.0,0.1]
[1731231369830,0.14645051,79318.0,79312.0,0.1]
[1731231370038,0.14645051,79318.0,79300.0,0.0488]
[1731231370239,0.14645051,79312.0,79308.0,0.19007071]
[1731231370438,0.14645051,79312.0,79301.0,0.17119895]
[1731231371616,1.5,79311.0,79302.0,0.1]
[1731231371819,1.5,79311.0,79304.0,0.1]
[1731231372258,0.14645051,79305.0,79304.0,0.1]
[1731231372549,0.22525051,79305.0,79299.0,0.014178]
[1731231372753,0.22525051,79305.0,79301.0,0.19007071]
[1731231372950,0.19007071,79327.0,79300.0,0.04525674]
[1731231372951,0.0788,79312.0,79300.0,0.04525674]
[1731231373173,0.0788,79312.0,79302.0,0.04525674]
[1731231373174,1.5,79304.0,79302.0,0.04525674]
[1731231374642,1.5,79304.0,79299.0,0.014178]
[1731231375183,1.5,79304.0,79299.0,0.05943474]
[1731231375364,0.19007071,79303.0,79299.0,0.05943474]
[1731231375565,1.5496,79304.0,79299.0,0.014178]
[1731231376964,0.0788,79303.0,79299.0,0.014178]
[1731231377567,0.0788,79303.0,79302.0,0.00168]
[1731231377946,0.0838,79303.0,79302.0,0.00168]
[1731231379617,0.0938,79303.0,79302.0,0.00168]
[1731231379821,0.1419,79303.0,79302.0,0.00168]
[1731231380026,1.6419,79303.0,79302.0,0.00168]
[1731231380228,1.91429272,79303.0,79302.0,0.00168]
[1731231380496,1.76784221,79303.0,79302.0,0.00168]
[1731231381082,1.91429272,79303.0,79302.0,0.00168]
[1731231381296,1.76784221,79303.0,79302.0,0.00168]
[1731231382992,1.6419,79303.0,79302.0,0.00168]
[1731231383196,1.5788,79303.0,79302.0,0.00168]
[1731231383538,1.5,79303.0,79302.0,0.00168]
[1731231383737,0.14645051,79305.0,79302.0,0.00168]
[1731231384073,1.5,79304.0,79302.0,0.00168]
[1731231384483,0.14645051,79305.0,79302.0,0.00168]
[1731231385551,1.5,79303.0,79302.0,0.00168]
[1731231388053,1.505,79303.0,79302.0,0.00168]
[1731231388813,1.51,79303.0,79302.0,0.00168]
[1731231389217,1.515,79303.0,79302.0,0.00168]
[1731231390343,1.505,79303.0,79302.0,0.00168]
[1731231392936,1.515,79303.0,79302.0,0.00168]
[1731231394827,1.51505,79303.0,79302.0,0.00168]
[1731231398949,1.56365,79303.0,79302.0,0.00168]
[1731231399331,0.06365,79303.0,79302.0,0.00168]
[1731231400453,1.56365,79303.0,79302.0,0.00168]
[1731231401618,1.55865,79303.0,79302.0,0.00168]
[1731231401820,1.50505,79303.0,79302.0,0.00168]
[1731231407060,0.00505,79303.0,79302.0,0.00168]
[1731231407509,1.50505,79303.0,79302.0,0.00168]
[1731231408965,0.005,79302.0,79299.0,0.010858]
[1731231410654,0.00332672,79302.0,79299.0,0.010858]
[1731231414801,0.00332672,79302.0,79299.0,0.012538]
[1731231415038,0.00084,79304.0,79299.0,0.012538]
[1731231416094,1.5,79301.0,79299.0,0.012538]
[1731231421312,0.09610217,79300.0,79299.0,0.012538]
[1731231423693,0.19220434,79300.0,79299.0,0.012538]
[1731231424040,0.09610217,79300.0,79299.0,0.012538]
[1731231424461,0.31930434,79300.0,79299.0,0.012538]
[1731231424868,1.81930434,79300.0,79299.0,0.00237078]
[1731231429163,1.79630434,79300.0,79299.0,0.00237078]
[1731231433776,1.75070434,79300.0,79299.0,0.00237078]
[1731231434009,1.67760217,79300.0,79299.0,0.00237078]
[1731231434177,1.77370434,79300.0,79299.0,0.00237078]
[1731231434385,1.69220434,79300.0,79299.0,0.00237078]
[1731231436496,1.5,79300.0,79299.0,0.00237078]
[1731231436841,1.59610217,79300.0,79299.0,0.00237078]
[1731231441193,1.59694217,79300.0,79299.0,0.00237078]
[1731231442434,1.50084,79300.0,79299.0,0.00237078]
[1731231442634,1.59694217,79300.0,79299.0,0.00237078]
[1731231444032,1.50084,79300.0,79299.0,0.36051299]
[1731231444236,0.00084,79300.0,79299.0,0.36693524]
[1731231444533,0.19007071,79315.0,79312.0,0.005]
[1731231444842,0.09610217,79313.0,79312.0,0.005]
[1731231445050,1.59610217,79313.0,79312.0,0.005]
[1731231446888,1.5,79313.0,79312.0,0.005]
[1731231450485,1.5,79313.0,79312.0,0.004305]
[1731231452247,1.5,79313.0,79311.0,0.104305]
[1731231452446,1.5,79313.0,79312.0,0.004305]
[1731231453377,1.50084,79313.0,79312.0,0.004305]
[1731231456605,1.59694217,79313.0,79312.0,0.004305]
[1731231456861,1.50084,79313.0,79312.0,0.004305]
[1731231458360,1.50084,79313.0,79310.0,0.005]
[1731231458563,1.50084,79313.0,79312.0,0.004305]
[1731231459416,0.00084,79313.0,79312.0,0.004305]
[1731231460095,0.00084,79313.0,79310.0,0.009305]
[1731231460328,0.00084,79313.0,79312.0,0.004305]
[1731231460329,1.50084,79313.0,79312.0,0.004305]
[1731231461189,1.59694217,79313.0,79312.0,0.004305]
[1731231464925,1.59694217,79313.0,79312.0,0.005985]
[1731231470378,1.50084,79313.0,79312.0,0.005985]
[1731231470645,1.59694217,79313.0,79312.0,0.005985]
[1731231473969,1.50084,79313.0,79312.0,0.23692721]
[1731231474207,0.00084,79313.0,79312.0,0.23692721]
[1731231474402,0.00084,79313.0,79312.0,0.24355919]
[1731231474828,1.5,79319.0,79312.0,0.24355919]
[1731231474995,0.09610217,79320.0,79317.0,0.004305]
[1731231475861,1.5,79319.0,79317.0,0.004305]
[1731231477366,1.50084,79319.0,79317.0,0.004305]
[1731231479734,0.00084,79319.0,79317.0,0.004305]
[1731231483984,0.00084,79319.0,79318.0,0.28504721]
[1731231484999,1.5,79326.0,79319.0,0.1]
[1731231485204,1.5,79326.0,79325.0,0.004305]
[1731231488348,1.5804,79326.0,79325.0,0.004305]
[1731231488558,1.67650217,79326.0,79325.0,0.004305]
[1731231488720,1.67650217,79326.0,79324.0,0.004305]
[1731231489047,1.67650217,79326.0,79325.0,0.004305]
[1731231489246,0.0804,79326.0,79324.0,0.004305]
[1731231489605,0.0804,79326.0,79325.0,0.004305]
[1731231489835,0.0804,79332.0,79326.0,0.005]
[1731231490242,0.0804,79332.0,79327.0,0.004305]
[1731231490445,0.09610217,79330.0,79327.0,0.004305]
[1731231491031,0.0804,79337.0,79327.0,0.009305]
[1731231491230,1.5,79329.0,79327.0,0.009305]
[1731231491631,1.5,79329.0,79328.0,0.005]
[1731231491842,1.5,79329.0,79328.0,0.009305]
[1731231492510,0.09610217,79334.0,79328.0,0.009305]
[1731231492715,0.09610217,79334.0,79329.0,0.004305]
[1731231493098,1.5,79333.0,79329.0,0.004305]
[1731231493297,0.09610217,79330.0,79329.0,0.004305]
[1731231494134,0.09610217,79330.0,79329.0,0.009305]
[1731231494541,0.09610217,79330.0,79329.0,0.004305]
[1731231495141,0.09610217,79330.0,79329.0,0.009305]
[1731231495347,0.09610217,79330.0,79329.0,0.004305]
[1731231496577,1.59610217,79330.0,79329.0,0.004305]
[1731231499403,0.09610217,79330.0,79329.0,0.004305]
[1731231500508,1.59610217,79330.0,79329.0,0.004305]
[1731231501462,1.59610217,79330.0,79328.0,0.005]
[1731231501666,1.59610217,79330.0,79329.0,0.004305]
[1731231502659,1.59610217,79330.0,79328.0,0.005]
[1731231502868,1.59610217,79330.0,79329.0,0.004305]
[1731231503200,1.59610217,79330.0,79328.0,0.005]
[1731231503400,1.59610217,79330.0,79329.0,0.004305]
[1731231504180,1.50084,79330.0,79329.0,0.009305]
[1731231504386,0.00084,79330.0,79329.0,0.009305]
[1731231504803,0.00084,79330.0,79329.0,0.23524721]
[1731231505511,0.00084,79330.0,79329.0,0.23471643]
[1731231506276,0.00084,79330.0,79329.0,0.27991643]
[1731231513725,0.09610217,79337.0,79329.0,0.27991643]
[1731231513932,0.09610217,79344.0,79336.0,0.00377422]
[1731231514105,0.09610217,79344.0,79343.0,0.00377422]
[1731231514715,1.5,79344.0,79343.0,0.00377422]
[1731231515530,1.59610217,79344.0,79343.0,0.00377422]
[1731231515963,1.59694217,79344.0,79343.0,0.00377422]
[1731231516166,0.0468,79343.0,79342.0,0.00377422]
[1731231516348,0.1257,79343.0,79342.0,0.00377422]
[1731231516594,0.1257,79343.0,79333.0,0.005]
[1731231516595,0.1257,79343.0,79339.0,0.00377422]
[1731231516729,0.1257,79343.0,79342.0,0.00377422]
[1731231517495,0.1257,79343.0,79339.0,0.00377422]
[1731231517709,0.1257,79343.0,79333.0,0.005]
[1731231517710,0.1257,79343.0,79342.0,0.00377422]
[1731231519385,0.0758,79342.0,79337.0,0.00377422]
[1731231519746,1.69304434,79344.0,79337.0,0.00377422]
[1731231519747,0.17190217,79338.0,79337.0,0.00377422]
[1731231519977,0.17190217,79338.0,79331.0,0.1]
[1731231519978,0.17190217,79338.0,79334.0,0.00377422]
[1731231520198,0.09610217,79335.0,79334.0,0.00377422]
[1731231520612,0.09590217,79335.0,79334.0,0.00377422]
[1731231521515,0.0758,79334.0,79323.0,0.00377422]
[1731231521756,0.09610217,79327.0,79326.0,0.00545422]
[1731231521951,0.09610217,79327.0,79326.0,0.00168]
[1731231522228,1.67190217,79327.0,79326.0,0.00168]
[1731231522437,1.72100217,79327.0,79326.0,0.00168]
[1731231522846,1.6249,79327.0,79326.0,0.00168]
[1731231524110,1.6249,79327.0,79317.0,0.00168]
[1731231524111,0.09610217,79318.0,79317.0,0.00168]
[1731231524324,0.17530217,79318.0,79317.0,0.00394141]
[1731231524740,1.67530217,79318.0,79317.0,0.00394141]
[1731231524954,1.72350217,79318.0,79317.0,0.00394141]
[1731231526237,1.72350217,79318.0,79317.0,0.00168]
[1731231526448,1.72350217,79318.0,79317.0,0.00394141]
[1731231528869,1.72350217,79318.0,79317.0,0.00168]
[1731231529273,1.72350217,79318.0,79317.0,0.00394141]
[1731231529506,1.72350217,79318.0,79317.0,0.00168]
[1731231531480,1.72350217,79318.0,79317.0,0.00394141]
[1731231533101,1.72350217,79318.0,79317.0,0.00168]
[1731231533303,1.72350217,79318.0,79317.0,0.00394141]
[1731231534336,1.70050217,79318.0,79317.0,0.00394141]
[1731231535571,0.09610217,79323.0,79317.0,0.00894141]
[1731231535774,0.09610217,79323.0,79318.0,0.00226141]
[1731231535951,0.09610217,79323.0,79318.0,0.01116146]
[1731231536153,0.09610217,79319.0,79318.0,0.00226141]
[1731231536627,0.09610217,79321.0,79318.0,0.00226141]
[1731231538166,0.0792,79320.0,79318.0,0.00226141]
[1731231538370,0.09610217,79319.0,79318.0,0.00226141]
[1731231539414,0.09408267,79319.0,79317.0,0.00168]
[1731231539620,0.09408267,79319.0,79318.0,0.00226141]
[1731231541050,0.0792,79320.0,79318.0,0.00226141]
[1731231541254,0.09694217,79321.0,79320.0,0.1]
[1731231541658,0.09694217,79321.0,79320.0,0.10806389]
[1731231541867,0.09694217,79321.0,79320.0,0.1]
[1731231542454,0.09694217,79321.0,79319.0,0.00226141]
[1731231543296,0.00084,79321.0,79319.0,0.00226141]
[1731231545055,0.14717387,79330.0,79321.0,0.00726141]
[1731231545191,0.09289543,79330.0,79322.0,0.00226141]
[1731231545981,1.5,79329.0,79323.0,0.00226141]
[1731231546181,1.5,79329.0,79325.0,0.00226141]
[1731231546867,0.00084,79344.0,79331.0,0.00226141]
[1731231547098,0.14633487,79339.0,79332.0,0.00226141]
[1731231547297,0.00084,79344.0,79332.0,0.00226141]
[1731231547298,0.14633487,79333.0,79332.0,0.00226141]
[1731231547634,0.14633487,79333.0,79325.0,0.05506141]
[1731231547833,1.5,79328.0,79325.0,0.05506141]
[1731231548284,0.14633487,79327.0,79314.0,0.0813]
[1731231548480,0.14633487,79327.0,79322.0,0.31601292]
[1731231548687,0.14633487,79327.0,79322.0,0.12594221]
[1731231549305,0.12333487,79327.0,79322.0,0.12594221]
[1731231549899,0.12333487,79327.0,79323.0,0.1]
[1731231550168,0.12333487,79327.0,79323.0,0.22594221]
[1731231551105,0.12333487,79327.0,79317.0,0.15409173]
[1731231551334,0.12333487,79327.0,79319.0,0.1]
[1731231551758,1.5,79326.0,79319.0,0.1]
[1731231553777,1.5,79326.0,79317.0,0.05409173]
[1731231554130,1.5,79326.0,79320.0,0.1]
[1731231554303,1.5,79326.0,79322.0,0.1]
[1731231555580,1.5,79326.0,79317.0,0.05409173]
[1731231555785,1.5,79326.0,79319.0,0.1]
[1731231556443,0.00084,79328.0,79325.0,0.1]
[1731231556670,0.17797487,79344.0,79327.0,0.1]
[1731231556857,0.14633487,79338.0,79328.0,0.12594221]
[1731231557062,0.14633487,79338.0,79329.0,0.1]
[1731231557263,0.14633487,79338.0,79330.0,0.12594221]
[1731231557463,0.14633487,79338.0,79331.0,0.1]
[1731231557464,1.5,79337.0,79331.0,0.1]
[1731231557670,1.5,79337.0,79332.0,0.12594221]
[1731231557839,1.5,79337.0,79333.0,0.1]
[1731231558050,1.5,79337.0,79334.0,0.1]
[1731231560314,1.5,79337.0,79335.0,0.12594221]
[1731231560661,1.5,79337.0,79336.0,0.1]
[1731231560862,1.5,79337.0,79336.0,0.12594221]
[1731231561107,1.5,79337.0,79336.0,0.22594221]
[1731231563106,0.0485,79353.0,79336.0,0.22594221]
[1731231563273,5e-05,79337.0,79332.0,0.1752]
[1731231563475,5e-05,79337.0,79336.0,0.29007071]
[1731231563679,0.0485,79353.0,79336.0,0.1]
[1731231563894,0.0485,79353.0,79337.0,0.1]
[1731231564134,1.5,79352.0,79337.0,0.1]
[1731231564359,0.0805,79355.0,79343.0,0.1]
[1731231564555,0.14717487,79356.0,79343.0,0.1]
[1731231564556,0.00084,79356.0,79344.0,0.0786]
[1731231565108,0.00084,79356.0,79346.0,0.1]
[1731231565302,1.5,79351.0,79348.0,0.1]
[1731231565504,1.5,79351.0,79350.0,0.1]
[1731231567046,1.5,79351.0,79350.0,0.22594221]
[1731231567954,0.00084,79356.0,79350.0,0.22594221]
[1731231568160,0.00084,79356.0,79351.0,0.12594221]
[1731231568362,0.00084,79356.0,79352.0,0.1]
[1731231568562,0.00084,79356.0,79353.0,0.12594221]
[1731231568791,0.00084,79356.0,79354.0,0.1]
[1731231568939,0.00084,79356.0,79355.0,0.12594221]
[1731231569153,0.00084,79356.0,79355.0,0.22594221]
[1731231570510,0.00084,79356.0,79350.0,0.05014904]
[1731231570707,0.14633487,79351.0,79350.0,0.05014904]
[1731231570980,0.14633487,79351.0,79342.0,0.1]
[1731231571186,0.14633487,79351.0,79344.0,0.1506808]
[1731231571394,1.5,79350.0,79345.0,0.12594221]
[1731231571611,1.5,79350.0,79346.0,0.1]
[1731231571837,1.5,79350.0,79347.0,0.12594221]
[1731231572024,1.5,79350.0,79348.0,0.1]
[1731231572222,1.5,79350.0,79348.0,0.22594221]
[1731231573139,1.5,79350.0,79348.0,0.1]
[1731231573345,1.5,79350.0,79342.0,0.05125347]
[1731231573550,1.5,79350.0,79345.0,0.1]
[1731231574814,1.5,79350.0,79341.0,0.05736774]
[1731231575014,1.5,79350.0,79343.0,0.1]
[1731231575219,1.5,79350.0,79345.0,0.1]
[1731231575420,1.5,79350.0,79346.0,0.12594221]
[1731231575739,1.5,79350.0,79347.0,0.1]
[1731231575954,1.5,79350.0,79349.0,0.1]
[1731231576580,1.500839,79350.0,79349.0,0.1]
[1731231578471,0.000839,79350.0,79349.0,0.1]
[1731231579295,0.14633487,79357.0,79349.0,0.1]
[1731231579993,0.14633487,79357.0,79349.0,0.15121961]
[1731231580372,1.5,79355.0,79349.0,0.15121961]
[1731231580596,0.0754,79354.0,79349.0,0.15121961]
[1731231581378,0.0754,79354.0,79349.0,0.05121961]
[1731231581587,0.0754,79354.0,79334.0,0.082]
[1731231581588,0.0754,79354.0,79339.0,0.005]
[1731231581923,0.0754,79354.0,79346.0,0.19007071]
[1731231582134,0.0754,79354.0,79347.0,0.1]
[1731231583144,0.0754,79354.0,79342.0,0.1]
[1731231583326,0.0754,79354.0,79343.0,0.12594221]
[1731231583540,0.0754,79354.0,79344.0,0.1]
[1731231584040,1.5,79353.0,79344.0,0.1]
[1731231584480,0.0754,79354.0,79344.0,0.1]
[1731231584736,0.06955288,79354.0,79344.0,0.1]
[1731231585576,1.5,79352.0,79344.0,0.1]
[1731231588016,1.5,79352.0,79346.0,0.1]
[1731231588430,0.27583487,79351.0,79344.0,0.1]
[1731231589201,0.27583487,79351.0,79342.0,0.001678]
[1731231589611,0.27583487,79351.0,79342.0,0.05357768]
[1731231589816,0.27583487,79351.0,79342.0,0.001678]
[1731231591819,0.27583487,79351.0,79342.0,0.05362345]
[1731231592022,1.5,79350.0,79342.0,0.001678]
[1731231594361,0.27583487,79351.0,79342.0,0.05305071]
[1731231594621,0.27583487,79351.0,79342.0,0.001678]
[1731231595367,1.5,79349.0,79342.0,0.001678]
[1731231596575,1.5,79349.0,79342.0,0.05167]
[1731231596778,1.5,79349.0,79342.0,0.001678]
[1731231599543,0.14633487,79345.0,79342.0,0.001678]
[1731231600296,0.14633487,79345.0,79342.0,0.05179784]
[1731231600502,0.14633487,79345.0,79342.0,0.001678]
[1731231600713,0.0474,79344.0,79342.0,0.001678]
[1731231602515,0.14633487,79343.0,79342.0,0.001678]
[1731231602914,1.64633487,79343.0,79342.0,0.001678]
[1731231604304,1.64633487,79343.0,79342.0,0.05347515]
[1731231604506,1.64633487,79343.0,79342.0,0.001678]
[1731231604858,1.5,79343.0,79342.0,0.001678]
[1731231606764,1.5,79343.0,79342.0,0.101678]
[1731231606956,1.5,79343.0,79342.0,0.08053213]
[1731231607876,1.5,79343.0,79325.0,0.27420455]
[1731231607877,1.5,79343.0,79330.0,0.1263]
[1731231608079,0.09596144,79338.0,79331.0,0.12594221]
[1731231608283,0.09596144,79333.0,79331.0,0.12594221]
[1731231608506,0.09596144,79337.0,79331.0,0.12594221]
[1731231608769,0.0676336,79337.0,79331.0,0.12594221]
[1731231609271,1.5,79343.0,79332.0,0.1]
[1731231609480,0.14629565,79338.0,79326.0,0.1]
[1731231609678,0.14629565,79338.0,79329.0,0.19007071]
[1731231609920,0.14629565,79338.0,79328.0,0.1]
[1731231610119,0.14629565,79338.0,79329.0,0.1]
[1731231610678,1.5,79343.0,79329.0,0.1]
[1731231611401,1.5,79343.0,79329.0,0.34074335]
[1731231614799,1.5,79343.0,79331.0,0.001678]
[1731231617152,1.5,79343.0,79333.0,0.1]
[1731231617359,1.5,79343.0,79334.0,0.12594221]
[1731231617532,1.5,79343.0,79335.0,0.1]
[1731231617753,1.5,79343.0,79335.0,0.22594221]
[1731231618143,1.5,79343.0,79337.0,0.1]
[1731231619975,1.5,79343.0,79339.0,0.1]
[1731231621022,1.5,79343.0,79341.0,0.1]
[1731231621233,1.5,79343.0,79342.0,0.47811]
[1731231621953,0.000839,79352.0,79343.0,0.2252]
[1731231622192,0.000839,79352.0,79345.0,0.1]
[1731231622469,0.000839,79352.0,79347.0,0.1]
[1731231622630,0.000839,79352.0,79349.0,0.1]
[1731231622801,0.000839,79352.0,79351.0,0.1]
[1731231623006,0.000839,79352.0,79351.0,0.47807]
[1731231623200,0.000839,79352.0,79351.0,0.60401221]
[1731231624281,0.000839,79354.0,79351.0,0.60401221]
[1731231624450,0.14629565,79363.0,79352.0,0.1]
[1731231624648,0.14629565,79363.0,79354.0,0.1]
[1731231624826,0.14629565,79363.0,79356.0,0.1]
[1731231625006,0.14629565,79363.0,79358.0,0.1]
[1731231625212,0.14629565,79363.0,79360.0,0.1]
[1731231625435,1.5,79362.0,79361.0,0.47802]
[1731231627956,1.5,79362.0,79361.0,0.60396221]
[1731231628864,0.14629565,79371.0,79361.0,0.60396221]
[1731231628992,0.14629565,79371.0,79362.0,0.22594221]
[1731231629400,1.5,79370.0,79363.0,0.01358935]
[1731231629620,1.5,79370.0,79363.0,0.23953156]
[1731231631720,1.5,79370.0,79363.0,0.23097332]
[1731231637848,0.09590547,79373.0,79363.0,0.23097332]
[1731231638578,1.5,79372.0,79363.0,0.23097332]
[1731231639328,0.09590547,79373.0,79364.0,0.1]
[1731231639525,0.09590547,79373.0,79366.0,0.1]
[1731231639745,0.09590547,79374.0,79368.0,0.1]
[1731231640098,0.09590547,79374.0,79369.0,0.1]
[1731231640286,1.5,79371.0,79369.0,0.1]
[1731231642732,1.5,79371.0,79370.0,0.22594221]
[1731231643094,5.0,79377.0,79371.0,0.1]
[1731231643294,5.0,79377.0,79372.0,0.12594221]
[1731231643503,5.0,79377.0,79373.0,0.1]
[1731231643707,1.5,79376.0,79373.0,0.22594221]
[1731231645331,1.5,79376.0,79370.0,0.0825]
[1731231645332,1.5,79376.0,79374.0,0.12594221]
[1731231645578,1.5,79376.0,79375.0,0.1]
[1731231645847,1.5,79376.0,79375.0,0.22594221]
[1731231647125,1.59590547,79376.0,79375.0,0.22594221]
[1731231647266,1.59590547,79376.0,79370.0,0.0825]
[1731231647468,1.59590547,79376.0,79372.0,0.1]
[1731231647678,1.59590547,79376.0,79373.0,0.12594221]
[1731231648062,1.5,79376.0,79374.0,0.1]
[1731231648269,1.5,79376.0,79374.0,0.22594221]
[1731231648872,1.50005,79376.0,79374.0,0.22594221]
[1731231651449,1.50089,79376.0,79374.0,0.22594221]
[1731231652441,1.55089,79376.0,79374.0,0.22594221]
[1731231653083,1.55089,79376.0,79374.0,0.27655304]
[1731231654396,0.05089,79376.0,79374.0,0.27655304]
[1731231654816,0.05089,79376.0,79374.0,0.22594221]
[1731231655386,1.5,79375.0,79374.0,0.22594221]
[1731231658555,1.5,79375.0,79366.0,0.147]
[1731231658750,1.5,79375.0,79368.0,0.1]
[1731231658953,1.5,79375.0,79369.0,0.12594221]
[1731231659168,1.5,79375.0,79370.0,0.1]
[1731231659362,1.5,79375.0,79371.0,0.12594221]
[1731231659568,1.5,79375.0,79372.0,0.1]
[1731231659768,1.5,79375.0,79372.0,0.12594221]
[1731231660168,1.5,79375.0,79373.0,0.1]
[1731231660617,1.5,79375.0,79374.0,0.49381292]
[1731231660828,0.05089,79376.0,79374.0,0.49381292]
[1731231660829,0.05089,79376.0,79375.0,0.1]
[1731231660986,0.05089,79376.0,79375.0,0.22594221]
[1731231661508,0.14679547,79376.0,79375.0,0.22594221]
[1731231661921,0.14679547,79376.0,79367.0,0.1778]
[1731231662108,0.14679547,79376.0,79370.0,0.19007071]
[1731231662327,0.14679547,79376.0,79371.0,0.22594221]
[1731231662525,1.5,79375.0,79371.0,0.22594221]
[1731231664046,1.5,79375.0,79372.0,0.00168]
[1731231664247,1.5,79375.0,79373.0,0.12594221]
[1731231664832,1.5,79375.0,79374.0,0.1]
[1731231665005,1.5,79375.0,79374.0,0.12594221]
[1731231665160,1.5,79375.0,79374.0,0.22594221]
[1731231669316,0.05089,79376.0,79374.0,0.22594221]
[1731231669575,0.05089,79376.0,79375.0,0.1]
[1731231670176,0.05094,79376.0,79375.0,0.1]
[1731231670400,1.55094,79376.0,79375.0,0.1]
[1731231672754,1.64684547,79376.0,79375.0,0.1]
[1731231676360,1.64684547,79376.0,79375.0,0.1522224]
[1731231678189,1.64684547,79376.0,79375.0,0.101678]
[1731231678559,1.55094,79376.0,79375.0,0.22762021]
[1731231682600,1.55094,79376.0,79375.0,0.27871156]
[1731231684374,1.52794,79376.0,79375.0,0.27871156]
[1731231684497,1.52794,79376.0,79375.0,0.22762021]
[1731231686667,1.52471185,79376.0,79375.0,0.22762021]
[1731231687738,0.02471185,79376.0,79375.0,0.35802021]
[1731231688716,0.02555085,79376.0,79375.0,0.35802021]
[1731231697576,0.01800438,79376.0,79375.0,0.35802021]
[1731231697805,0.01800438,79376.0,79375.0,0.34902021]
[1731231698037,0.01800438,79376.0,79375.0,0.30239193]
[1731231698292,0.01800438,79376.0,79375.0,0.3982974]
[1731231699355,5.0,79377.0,79375.0,0.3982974]
[1731231699356,4.99500438,79377.0,79375.0,0.3982974]
[1731231699570,4.99500438,79377.0,79376.0,0.12594221]
[1731231700031,4.99500438,79377.0,79376.0,0.22594221]
[1731231701727,4.99500438,79377.0,79376.0,0.64321839]
[1731231701931,4.99500438,79377.0,79376.0,0.74019221]
[1731231702608,4.99500438,79377.0,79376.0,0.73519221]
[1731231702825,4.99500438,79377.0,79376.0,0.73019221]
[1731231703456,4.99500438,79377.0,79376.0,0.73519221]
[1731231705929,4.99500438,79377.0,79376.0,0.74219221]
[1731231706345,4.99500438,79377.0,79376.0,0.74019221]
[1731231707253,4.99500438,79377.0,79376.0,0.74219221]
[1731231707465,4.99500438,79377.0,79376.0,0.74019221]
[1731231708448,4.99500438,79377.0,79376.0,0.84309768]
[1731231708683,4.99500438,79377.0,79376.0,0.74719221]
[1731231708874,4.99505438,79377.0,79376.0,0.74719221]
[1731231709055,4.99505438,79377.0,79376.0,0.74519221]
[1731231709459,4.99505438,79377.0,79376.0,0.60389221]
[1731231709667,4.99505438,79377.0,79376.0,0.73919221]
[1731231710721,4.99505438,79377.0,79376.0,0.74119221]
[1731231710930,4.99505438,79377.0,79376.0,0.73919221]
[1731231711375,4.99589338,79377.0,79376.0,0.73919221]
[1731231713721,4.99589338,79377.0,79376.0,0.74119221]
[1731231714284,4.99589338,79377.0,79376.0,0.73919221]
[1731231714640,4.97289338,79377.0,79376.0,0.73919221]
[1731231715035,4.97289338,79377.0,79376.0,0.74119221]